bitfinex/quotes_SOLUSD_20250106
["timestamp","ask_amount","ask_price","bid_price","bid_amount"]
[1736182271451,0.75098,220.96,220.93,5.0]
[1736182271748,0.75098,220.96,220.95,5.0]
[1736182272122,0.5,220.98,220.97,5.0]
[1736182272323,0.5,221.0,220.97,10.0]
[1736182272546,2.46,221.02,221.0,5.0]
[1736182272849,16.65599069,221.01,221.0,5.0]
[1736182273055,16.65599069,221.01,221.0,26.74354959]
[1736182273230,0.5,221.08,221.07,5.0]
[1736182273430,0.5,221.08,221.07,10.0]
[1736182273628,0.75098,221.08,221.07,10.0]
[1736182273828,0.62549,221.08,221.07,10.0]
[1736182274083,2.46,221.1,221.09,5.0]
[1736182274259,24.20354959,221.1,221.09,5.0]
[1736182274463,0.12549,221.07,221.05,5.0]
[1736182274640,0.25098,221.05,221.0,10.0]
[1736182274845,0.12549,221.0,220.98,5.0]
[1736182275194,0.12549,221.0,220.99,5.0]
[1736182275475,0.5,221.01,221.0,5.0]
[1736182275857,0.62549,221.01,221.0,5.0]
[1736182276166,0.75098,221.0,220.97,5.0]
[1736182276373,21.86903959,220.98,220.97,5.0]
[1736182276586,0.5,220.99,220.98,5.0]
[1736182276750,0.5,221.04,220.98,26.74354959]
[1736182276951,0.12549,221.03,221.02,5.0]
[1736182277665,2.96,221.06,221.05,10.0]
[1736182277846,3.08549,221.06,221.05,10.0]
[1736182278772,0.62549,221.06,221.05,10.0]
[1736182279080,0.5,221.11,221.1,5.0]
[1736182279282,0.62549,221.11,221.1,5.0]
[1736182279944,0.5,221.14,221.13,10.0]
[1736182280147,0.5,221.15,221.13,10.0]
[1736182280347,0.12549,221.14,221.11,5.0]
[1736182280563,21.99452959,221.14,221.13,5.0]
[1736182282103,0.12549,221.13,221.11,5.0]
[1736182282254,0.25098,221.12,221.11,5.0]
[1736182282660,0.25098,221.12,221.11,10.0]
[1736182283600,21.99452959,221.12,221.11,10.0]
[1736182283803,0.25098,221.12,221.11,10.0]
[1736182286598,0.12549,221.12,221.11,10.0]
[1736182290018,0.5,221.16,221.15,10.0]
[1736182290471,0.75098,221.16,221.15,10.0]
[1736182290667,0.62549,221.16,221.15,10.0]
[1736182291402,0.5,221.18,221.17,10.0]
[1736182291615,0.5,221.18,221.17,31.74354959]
[1736182291901,0.5,221.18,221.17,10.0]
[1736182292404,0.5,221.18,221.17,31.74354959]
[1736182293670,0.5,221.23,221.2,10.0]
[1736182293870,0.5,221.23,221.22,31.74354959]
[1736182294073,2.42,221.3,221.29,5.0]
[1736182294280,2.42,221.3,221.29,10.0]
[1736182294480,18.41588964,221.32,221.31,5.0]
[1736182294688,15.99588964,221.32,221.31,5.0]
[1736182294898,0.12549,221.31,221.29,5.0]
[1736182295082,0.12549,221.31,221.27,5.0]
[1736182295083,0.12549,221.29,221.25,10.0]
[1736182295272,15.87039964,221.32,221.25,10.0]
[1736182295273,23.776884,221.31,221.25,5.0]
[1736182295611,0.75098,221.25,221.24,5.0]
[1736182295779,22.49452959,221.25,221.24,5.0]
[1736182295977,0.75098,221.25,221.24,10.0]
[1736182296380,0.62549,221.25,221.24,10.0]
[1736182296581,0.12549,221.25,221.24,10.0]
[1736182296786,0.25098,221.25,221.24,10.0]
[1736182297101,0.25098,221.25,221.24,5.0]
[1736182297726,0.25098,221.25,221.24,10.0]
[1736182298305,0.12549,221.25,221.24,10.0]
[1736182299619,2.92,221.29,221.24,23.49329895]
[1736182299830,2.92,221.29,221.28,10.0]
[1736182300192,3.04549,221.29,221.28,10.0]
[1736182300811,0.12549,221.28,221.26,5.0]
[1736182301008,0.12549,221.27,221.26,5.0]
[1736182301311,0.62549,221.27,221.26,5.0]
[1736182301700,20.75098,221.27,221.26,5.0]
[1736182301897,0.75098,221.27,221.26,5.0]
[1736182302207,0.5,221.27,221.26,18.49329895]
[1736182302702,15.87039964,221.32,221.31,10.0]
[1736182303289,15.87039964,221.32,221.31,23.49329895]
[1736182303507,15.99588964,221.32,221.31,23.49329895]
[1736182303688,2.42,221.37,221.35,10.0]
[1736182304098,20.12549,221.36,221.35,10.0]
[1736182304714,20.25098,221.36,221.35,10.0]
[1736182305221,0.25098,221.36,221.35,10.0]
[1736182305593,20.25098,221.36,221.35,10.0]
[1736182306417,0.25098,221.36,221.35,10.0]
[1736182306716,0.12549,221.36,221.35,10.0]
[1736182307229,20.0,221.4,221.39,5.0]
[1736182307529,26.322374,221.42,221.41,5.0]
[1736182307900,0.12549,221.42,221.41,5.0]
[1736182308231,0.12549,221.42,221.41,10.0]
[1736182309093,2.42,221.47,221.46,5.0]
[1736182309393,20.12549,221.44,221.41,10.0]
[1736182309603,21.69205233,221.42,221.41,10.0]
[1736182309786,20.12549,221.4,221.39,10.0]
[1736182310190,0.12549,221.4,221.39,10.0]
[1736182310399,20.25098,221.4,221.39,10.0]
[1736182311206,0.25098,221.4,221.39,10.0]
[1736182311414,20.25098,221.4,221.39,10.0]
[1736182313824,0.25098,221.4,221.39,10.0]
[1736182314040,20.12549,221.38,221.37,10.0]
[1736182315807,43.902374,221.38,221.37,10.0]
[1736182316412,43.902374,221.38,221.37,5.0]
[1736182316606,65.46893633,221.38,221.37,5.0]
[1736182316815,43.902374,221.38,221.37,10.0]
[1736182317637,20.25098,221.34,221.33,5.0]
[1736182317864,44.027864,221.34,221.33,5.0]
[1736182318151,20.25098,221.34,221.33,5.0]
[1736182318336,0.25098,221.34,221.33,5.0]
[1736182318710,20.25098,221.34,221.33,5.0]
[1736182319016,0.25098,221.34,221.33,5.0]
[1736182319847,0.12549,221.34,221.33,26.56656233]
[1736182320438,20.0,221.36,221.35,10.0]
[1736182320635,20.0,221.36,221.35,31.56656233]
[1736182320965,20.12549,221.36,221.35,31.56656233]
[1736182321260,0.12549,221.36,221.35,31.56656233]
[1736182321647,0.12549,221.38,221.37,10.0]
[1736182321833,0.25098,221.38,221.37,5.0]
[1736182322162,0.75098,221.38,221.37,10.0]
[1736182322756,0.75098,221.38,221.35,10.0]
[1736182322960,20.12549,221.36,221.35,10.0]
[1736182323462,44.027864,221.36,221.35,5.0]
[1736182323664,24.027864,221.35,221.33,5.0]
[1736182323846,24.527864,221.34,221.33,10.0]
[1736182324044,24.527864,221.34,221.33,5.0]
[1736182324366,24.527864,221.34,221.33,10.0]
[1736182324522,0.62549,221.34,221.33,10.0]
[1736182324726,0.62549,221.34,221.33,31.56656233]
[1736182326149,24.027864,221.34,221.33,10.0]
[1736182326655,24.027864,221.34,221.33,5.0]
[1736182326862,20.25098,221.32,221.31,10.0]
[1736182327048,44.027864,221.32,221.31,10.0]
[1736182327255,57.51270205,221.32,221.31,5.0]
[1736182328151,24.027864,221.31,221.29,5.0]
[1736182328460,37.51270205,221.3,221.29,5.0]
[1736182328631,20.25098,221.27,221.26,5.0]
[1736182328826,57.51270205,221.27,221.26,5.0]
[1736182329063,20.25098,221.23,221.22,10.0]
[1736182329245,44.027864,221.23,221.22,10.0]
[1736182330563,20.0,221.19,221.18,5.0]
[1736182330928,0.62549,221.2,221.18,5.0]
[1736182330929,0.5,221.2,221.19,5.0]
[1736182331127,24.402374,221.2,221.19,18.48483805]
[1736182331370,24.402374,221.2,221.19,5.0]
[1736182331538,0.62549,221.2,221.19,18.48483805]
[1736182332545,0.62549,221.2,221.19,5.0]
[1736182332926,0.62549,221.2,221.19,18.48483805]
[1736182333460,0.62549,221.2,221.19,5.0]
[1736182333655,0.12549,221.2,221.19,5.0]
[1736182333969,0.12549,221.2,221.19,18.48483805]
[1736182334165,0.75098,221.2,221.19,5.0]
[1736182334381,44.027864,221.19,221.18,5.0]
[1736182337969,0.12549,221.17,221.16,5.0]
[1736182338371,0.12549,221.18,221.16,5.0]
[1736182338559,43.902374,221.17,221.16,5.0]
[1736182339576,0.12549,221.17,221.16,18.48483805]
[1736182340648,0.12549,221.17,221.16,5.0]
[1736182340849,0.12549,221.17,221.16,18.48483805]
[1736182341150,0.12549,221.17,221.16,5.0]
[1736182343766,13.48483805,221.22,221.16,5.0]
[1736182343767,0.5,221.22,221.17,5.0]
[1736182343965,2.48,221.26,221.24,5.0]
[1736182344280,37.51270205,221.25,221.24,5.0]
[1736182344483,44.027864,221.23,221.22,5.0]
[1736182344949,57.51270205,221.23,221.22,5.0]
[1736182345150,44.027864,221.23,221.22,5.0]
[1736182345404,0.12549,221.18,221.06,1.80835338]
[1736182345680,20.0,221.19,221.08,6.80835338]
[1736182345681,13.61032805,221.09,221.08,6.80835338]
[1736182345879,43.902374,221.06,221.05,1.80835338]
[1736182346099,57.38721205,221.06,221.05,1.80835338]
[1736182346682,46.302374,221.06,221.05,1.80835338]
[1736182347062,13.48483805,221.12,221.08,5.0]
[1736182347254,13.48483805,221.12,221.11,1.80835338]
[1736182347448,15.88483805,221.12,221.11,1.80835338]
[1736182347679,0.12549,221.1,221.09,1.80835338]
[1736182347978,37.38721205,221.1,221.09,1.80835338]
[1736182348182,23.902374,221.1,221.09,1.80835338]
[1736182348484,20.0,221.1,221.09,1.80835338]
[1736182349048,22.65098,221.1,221.09,1.80835338]
[1736182349267,26.427864,221.1,221.09,1.80835338]
[1736182350000,20.12549,221.07,221.06,5.0]
[1736182350194,43.902374,221.07,221.06,5.0]
[1736182351585,0.5,221.11,221.1,6.80835338]
[1736182351782,2.92,221.11,221.1,6.80835338]
[1736182352599,23.04549,221.11,221.1,6.80835338]
[1736182352804,60.30721205,221.11,221.1,6.80835338]
[1736182352969,23.902374,221.1,221.09,1.80835338]
[1736182353893,37.38721205,221.1,221.09,1.80835338]
[1736182354081,43.902374,221.08,221.07,1.80835338]
[1736182354417,57.38721205,221.08,221.07,1.80835338]
[1736182354691,0.62549,221.06,221.05,1.80835338]
[1736182355201,0.5,221.06,221.05,1.80835338]
[1736182355894,24.527864,221.06,221.05,1.80835338]
[1736182356875,0.62549,221.06,221.05,1.80835338]
[1736182357094,0.5,221.06,221.05,15.29319143]
[1736182357476,2.42,221.11,221.1,6.80835338]
[1736182357886,2.54549,221.11,221.1,6.80835338]
[1736182358595,26.322374,221.11,221.1,1.80835338]
[1736182359694,39.80721205,221.11,221.1,1.80835338]
[1736182359899,23.776884,221.1,221.08,6.80835338]
[1736182360075,23.776884,221.09,221.08,1.80835338]
[1736182360278,37.26172205,221.09,221.08,1.80835338]
[1736182360699,37.38721205,221.09,221.08,6.80835338]
[1736182360910,23.902374,221.09,221.08,6.80835338]
[1736182361206,57.38721205,221.09,221.08,1.80835338]
[1736182363310,57.51270205,221.09,221.08,1.80835338]
[1736182364102,20.0,221.07,221.06,1.80835338]
[1736182364304,20.0,221.07,221.04,5.0]
[1736182364305,0.12549,221.05,221.04,1.80835338]
[1736182364489,0.12549,221.05,221.02,5.0]
[1736182364490,43.902374,221.03,221.02,1.80835338]
[1736182364693,59.80721205,221.03,221.02,1.80835338]
[1736182367303,0.5,221.01,221.0,1.80835338]
[1736182368180,24.402374,221.01,221.0,1.80835338]
[1736182368594,0.5,221.01,221.0,15.29319143]
[1736182369705,23.902374,221.06,221.05,1.80835338]
[1736182369897,2.42,221.07,221.05,1.80835338]
[1736182370100,2.42,221.07,221.06,5.0]
[1736182370306,2.42,221.07,221.06,18.48483805]
[1736182370500,0.5,221.13,221.12,1.80835338]
[1736182370699,2.92,221.13,221.12,1.80835338]
[1736182370897,26.947864,221.13,221.12,1.80835338]
[1736182371317,40.43270205,221.13,221.12,1.80835338]
[1736182371511,16.53032805,221.13,221.12,1.80835338]
[1736182372425,14.23581805,221.13,221.12,1.80835338]
[1736182372602,16.65581805,221.13,221.12,1.80835338]
[1736182373322,43.902374,221.11,221.1,1.80835338]
[1736182380329,23.776884,221.1,221.08,1.80835338]
[1736182380500,20.0,221.06,221.05,5.0]
[1736182380700,23.776884,221.05,221.04,1.80835338]
[1736182380894,26.136884,221.05,221.04,1.80835338]
[1736182381702,26.262374,221.05,221.04,1.80835338]
[1736182382728,43.902374,221.02,221.01,1.80835338]
[1736182383035,23.902374,221.01,221.0,5.0]
[1736182383903,0.12549,221.0,220.99,1.80835338]
[1736182384104,23.902374,221.0,220.99,1.80835338]
[1736182384326,24.027864,221.0,220.99,1.80835338]
[1736182385198,13.73581805,221.0,220.99,1.80835338]
[1736182385634,43.902374,220.98,220.97,1.80835338]
[1736182385841,23.902374,220.97,220.95,1.80835338]
[1736182386129,26.762374,220.96,220.95,1.80835338]
[1736182386701,40.24721205,220.96,220.93,1.80835338]
[1736182387029,37.38721205,220.94,220.93,1.80835338]
[1736182387527,23.902374,220.92,220.91,1.80835338]
[1736182387736,37.38721205,220.92,220.91,1.80835338]
[1736182389141,37.51270205,220.92,220.91,1.80835338]
[1736182390332,26.387864,220.92,220.91,1.80835338]
[1736182390513,24.027864,220.92,220.91,1.80835338]
[1736182390829,26.387864,220.92,220.91,1.80835338]
[1736182392948,26.387864,220.92,220.91,6.80835338]
[1736182393117,2.48549,220.92,220.91,20.29319143]
[1736182393317,2.48549,220.92,220.91,6.80835338]
[1736182393515,2.98549,220.92,220.91,6.80835338]
[1736182394223,22.98549,220.92,220.91,1.80835338]
[1736182394645,22.98549,220.92,220.91,6.80835338]
[1736182394828,2.98549,220.92,220.91,6.80835338]
[1736182395233,2.98549,220.92,220.91,1.80835338]
[1736182395542,16.47032805,220.92,220.91,1.80835338]
[1736182396245,16.34483805,220.92,220.9,1.80835338]
[1736182396446,37.26172205,220.91,220.9,1.80835338]
[1736182397212,37.38721205,220.91,220.9,1.80835338]
[1736182397836,0.12549,220.89,220.88,1.80835338]
[1736182398212,0.12549,220.89,220.88,6.80835338]
[1736182398408,43.902374,220.89,220.88,6.80835338]
[1736182398726,0.5,220.92,220.91,6.80835338]
[1736182398924,0.5,220.92,220.91,20.29319143]
[1736182399114,2.36,220.93,220.91,20.29319143]
[1736182399441,2.48549,220.93,220.92,13.48483805]
[1736182399619,43.01597088,221.0,220.92,13.48483805]
[1736182399620,2.86,220.95,220.94,6.80835338]
[1736182399936,3.11098,220.95,220.94,20.29319143]
[1736182400244,0.75098,220.95,220.94,20.29319143]
[1736182400428,0.62549,220.95,220.94,20.29319143]
[1736182400633,0.75098,220.95,220.94,20.29319143]
[1736182401736,24.527864,220.95,220.94,1.80835338]
[1736182404130,20.75098,220.95,220.94,6.80835338]
[1736182405633,20.25098,220.95,220.94,6.80835338]
[1736182406863,0.25098,220.95,220.94,6.80835338]
[1736182407855,0.12549,220.95,220.94,20.29319143]
[1736182408336,2.36,220.97,220.94,20.29319143]
[1736182408641,0.5,221.0,220.98,6.80835338]
[1736182408845,13.48483805,221.06,221.03,1.80835338]
[1736182408846,13.98483805,221.06,221.03,1.80835338]
[1736182409154,2.36,221.05,221.03,1.80835338]
[1736182409839,15.84483805,221.05,221.03,1.80835338]
[1736182410316,2.36,221.05,221.03,1.80835338]
[1736182410525,23.776884,221.04,221.03,1.80835338]
[1736182412258,24.027864,221.04,221.03,1.80835338]
[1736182413156,44.027864,221.02,221.01,1.80835338]
[1736182413335,0.12549,220.99,220.98,1.80835338]
[1736182413523,20.12549,220.99,220.98,1.80835338]
[1736182413859,0.75098,220.99,220.98,20.29319143]
[1736182414148,0.62549,220.99,220.98,20.29319143]
[1736182414347,0.5,220.99,220.98,20.29319143]
[1736182416628,0.62549,220.99,220.98,20.29319143]
[1736182417548,0.12549,220.99,220.98,20.29319143]
[1736182418658,22.36,221.03,221.02,6.80835338]
[1736182418946,46.262374,221.03,221.02,6.80835338]
[1736182419122,0.12549,221.03,221.02,6.80835338]
[1736182419322,2.48549,221.03,221.02,6.80835338]
[1736182421247,2.61098,221.03,221.02,6.80835338]
[1736182422551,0.12549,221.02,221.0,6.80835338]
[1736182422734,23.902374,221.0,220.99,5.0]
[1736182423262,20.12549,221.0,220.99,5.0]
[1736182424856,43.776884,220.99,220.98,1.80835338]
[1736182425158,57.26172205,220.99,220.98,1.80835338]
[1736182425345,23.776884,220.98,220.96,1.80835338]
[1736182425737,13.48483805,220.98,220.96,1.80835338]
[1736182426138,13.61032805,220.98,220.97,5.0]
[1736182426345,23.902374,220.98,220.97,5.0]
[1736182427358,0.12549,220.97,220.96,1.80835338]
[1736182427671,23.902374,220.97,220.96,1.80835338]
[1736182427851,0.12549,220.97,220.96,1.80835338]
[1736182428050,33.48483805,220.99,220.96,1.80835338]
[1736182428051,37.38721205,220.98,220.96,1.80835338]
[1736182428437,13.28198066,221.02,220.96,1.80835338]
[1736182428438,13.73581805,220.97,220.96,1.80835338]
[1736182428867,44.027864,220.95,220.94,1.80835338]
[1736182429051,46.387864,220.95,220.94,1.80835338]
[1736182429963,2.61098,220.95,220.94,1.80835338]
[1736182430340,2.48549,220.95,220.94,1.80835338]
[1736182431177,0.12549,220.95,220.94,15.29319143]
[1736182432565,0.62549,220.95,220.94,15.29319143]
[1736182434183,0.75098,220.95,220.94,15.29319143]
[1736182435893,0.5,220.95,220.94,15.29319143]
[1736182436391,0.62549,220.97,220.96,6.80835338]
[1736182436550,0.62549,220.97,220.96,20.29319143]
[1736182438258,0.5,220.97,220.96,20.29319143]
[1736182440089,0.5,220.97,220.96,6.80835338]
[1736182440287,0.5,220.97,220.96,20.29319143]
[1736182441483,0.12549,220.98,220.96,20.29319143]
[1736182441660,20.0,221.02,221.01,1.80835338]
[1736182441862,20.0,221.02,221.01,15.29319143]
[1736182442071,0.12549,221.02,221.01,15.29319143]
[1736182442755,0.12549,221.02,221.01,1.80835338]
[1736182442954,0.5,221.12,221.09,5.0]
[1736182443175,0.5,221.12,221.11,6.80835338]
[1736182443391,2.34,221.12,221.11,6.80835338]
[1736182443595,6.99905109,221.15,221.13,6.80835338]
[1736182443811,2.34,221.14,221.13,6.80835338]
[1736182444300,0.12549,221.14,221.13,6.80835338]
[1736182444461,2.46549,221.14,221.13,6.80835338]
[1736182444802,0.25098,221.14,221.13,6.80835338]
[1736182444965,0.12549,221.14,221.13,6.80835338]
[1736182446102,20.25098,221.14,221.13,6.80835338]
[1736182446401,22.59098,221.14,221.13,6.80835338]
[1736182446593,59.85270205,221.14,221.13,1.80835338]
[1736182446755,0.12549,221.12,221.11,6.80835338]
[1736182446964,37.51270205,221.12,221.11,6.80835338]
[1736182447261,24.027864,221.12,221.11,6.80835338]
[1736182447462,0.25098,221.12,221.11,6.80835338]
[1736182448500,20.25098,221.12,221.11,6.80835338]
[1736182449474,0.25098,221.12,221.11,6.80835338]
[1736182450188,20.25098,221.12,221.11,6.80835338]
[1736182450398,20.25098,221.12,221.11,20.29319143]
[1736182450692,0.25098,221.12,221.11,6.80835338]
[1736182452697,0.25098,221.12,221.11,20.29319143]
[1736182453596,0.25098,221.12,221.11,6.80835338]
[1736182453898,0.25098,221.12,221.11,20.29319143]
[1736182454994,20.0,221.15,221.14,6.80835338]
[1736182455183,20.0,221.15,221.14,20.29319143]
[1736182455592,20.0,221.15,221.14,6.80835338]
[1736182457294,20.0,221.15,221.14,20.29319143]
[1736182457501,20.0,221.15,221.14,6.80835338]
[1736182457718,20.10830345,221.19,221.18,5.0]
[1736182457875,20.10830345,221.19,221.18,18.48483805]
[1736182458800,2.34,221.22,221.21,1.80835338]
[1736182459004,2.59098,221.22,221.21,6.80835338]
[1736182459498,19.57773805,221.29,221.27,5.0]
[1736182459682,2.34,221.28,221.27,5.0]
[1736182460291,24.027864,221.27,221.26,1.80835338]
[1736182460517,37.51270205,221.27,221.24,6.80835338]
[1736182460695,57.51270205,221.25,221.24,5.0]
[1736182460879,44.027864,221.21,221.2,1.80835338]
[1736182461200,57.51270205,221.21,221.2,6.80835338]
[1736182462114,44.027864,221.21,221.2,6.80835338]
[1736182462295,57.51270205,221.21,221.2,6.80835338]
[1736182462611,57.51270205,221.21,221.2,1.80835338]
[1736182466214,23.776884,221.2,221.18,1.80835338]
[1736182466508,26.616884,221.19,221.18,1.80835338]
[1736182467314,43.776884,221.17,221.16,1.80835338]
[1736182467891,22.84,221.19,221.18,5.0]
[1736182468395,46.616884,221.19,221.18,6.80835338]
[1736182468699,23.776884,221.18,221.16,1.80835338]
[1736182468904,0.5,221.17,221.16,1.80835338]
[1736182469514,13.48483805,221.17,221.16,1.80835338]
[1736182469825,24.027864,221.13,221.11,1.80835338]
[1736182470028,0.25098,221.12,221.11,1.80835338]
[1736182470187,24.027864,221.12,221.11,1.80835338]
[1736182471319,0.25098,221.12,221.11,1.80835338]
[1736182472123,0.25098,221.12,221.11,15.29319143]
[1736182472315,2.34,221.19,221.18,1.80835338]
[1736182472509,13.48483805,221.23,221.2,1.80835338]
[1736182472823,13.61032805,221.21,221.2,1.80835338]
[1736182473615,37.51270205,221.21,221.2,1.80835338]
[1736182473791,13.73581805,221.21,221.2,1.80835338]
[1736182473990,13.73581805,221.21,221.18,1.80835338]
[1736182474208,0.12549,221.2,221.18,1.80835338]
[1736182474416,13.61032805,221.2,221.18,1.80835338]
[1736182475303,20.0,221.19,221.18,1.80835338]
[1736182475495,43.902374,221.19,221.18,1.80835338]
[1736182477514,0.12549,221.19,221.18,1.80835338]
[1736182477817,13.48483805,221.24,221.2,6.80835338]
[1736182477993,0.12549,221.21,221.2,6.80835338]
[1736182479320,0.12549,221.21,221.2,20.29319143]
[1736182481098,25.4638598,221.33,221.29,1.80835338]
[1736182481300,0.5,221.32,221.31,1.80835338]
[1736182481906,0.62549,221.32,221.31,1.80835338]
[1736182482099,24.527864,221.32,221.31,1.80835338]
[1736182483696,38.01270205,221.32,221.31,1.80835338]
[1736182484805,0.25098,221.3,221.29,1.80835338]
[1736182485419,0.12549,221.29,221.27,1.80835338]
[1736182485625,23.902374,221.29,221.27,1.80835338]
[1736182486026,13.48483805,221.3,221.27,1.80835338]
[1736182486027,43.776884,221.28,221.27,1.80835338]
[1736182486407,57.26172205,221.28,221.27,1.80835338]
[1736182486925,23.776884,221.27,221.25,1.80835338]
[1736182487226,39.60172205,221.26,221.25,1.80835338]
[1736182489219,26.367864,221.26,221.25,1.80835338]
[1736182489422,39.85270205,221.26,221.25,1.80835338]
[1736182494935,26.367864,221.26,221.25,1.80835338]
[1736182495237,39.85270205,221.26,221.25,1.80835338]
[1736182495833,23.776884,221.25,221.24,5.0]
[1736182496024,37.26172205,221.25,221.24,5.0]
[1736182496625,22.34,221.26,221.23,1.80835338]
[1736182496930,0.5,221.23,221.22,5.0]
[1736182497135,37.76172205,221.23,221.22,5.0]
[1736182497635,24.276884,221.23,221.22,6.80835338]
[1736182497822,37.76172205,221.23,221.22,6.80835338]
[1736182498025,24.276884,221.23,221.22,5.0]
[1736182498330,37.76172205,221.23,221.22,5.0]
[1736182500046,24.027864,221.23,221.22,5.0]
[1736182500235,37.51270205,221.23,221.22,6.80835338]
[1736182500544,0.12549,221.23,221.22,6.80835338]
[1736182502437,13.48483805,221.29,221.27,6.80835338]
[1736182502632,30.84775539,221.3,221.29,6.80835338]
[1736182502835,44.33259344,221.3,221.25,6.80835338]
[1736182503147,24.027864,221.29,221.28,5.0]
[1736182503355,37.51270205,221.29,221.25,6.80835338]
[1736182503556,13.73581805,221.26,221.25,6.80835338]
[1736182503726,13.48483805,221.26,221.24,1.80835338]
[1736182504046,37.26172205,221.25,221.24,1.80835338]
[1736182504252,23.776884,221.24,221.23,5.0]
[1736182504424,37.26172205,221.24,221.23,5.0]
[1736182505071,37.26172205,221.24,221.22,1.80835338]
[1736182505423,33.48483805,221.25,221.24,1.80835338]
[1736182505736,30.84775539,221.3,221.24,1.80835338]
[1736182505737,13.48483805,221.26,221.24,1.80835338]
[1736182506364,13.48483805,221.26,221.25,5.0]
[1736182506567,20.0,221.27,221.26,1.80835338]
[1736182506736,0.5,221.29,221.28,6.80835338]
[1736182507767,38.01270205,221.29,221.28,1.80835338]
[1736182507939,38.01270205,221.29,221.18,15.11773805]
[1736182507940,20.25098,221.25,221.24,6.80835338]
[1736182509428,37.51270205,221.25,221.24,6.80835338]
[1736182510370,37.51270205,221.25,221.24,1.80835338]
[1736182512290,23.776884,221.24,221.22,1.80835338]
[1736182512449,37.26172205,221.23,221.22,1.80835338]
[1736182512653,23.776884,221.22,221.2,1.80835338]
[1736182512885,37.26172205,221.21,221.2,1.80835338]
[1736182513094,37.26172205,221.21,221.2,6.80835338]
[1736182513394,37.26172205,221.21,221.2,1.80835338]
[1736182513553,43.776884,221.18,221.17,1.80835338]
[1736182513760,23.776884,221.17,221.15,1.80835338]
[1736182513985,37.26172205,221.16,221.15,1.80835338]
[1736182514511,13.48483805,221.18,221.17,1.80835338]
[1736182514891,37.26172205,221.18,221.17,1.80835338]
[1736182515767,15.82483805,221.22,221.21,5.0]
[1736182516264,39.85270205,221.22,221.21,5.0]
[1736182516769,37.51270205,221.22,221.21,5.0]
[1736182516966,39.85270205,221.22,221.2,1.80835338]
[1736182517276,37.51270205,221.21,221.18,1.80835338]
[1736182517478,37.51270205,221.19,221.18,1.80835338]
[1736182518777,13.73581805,221.19,221.18,1.80835338]
[1736182519370,0.25098,221.19,221.18,1.80835338]
[1736182519984,13.73581805,221.19,221.18,1.80835338]
[1736182520167,0.25098,221.19,221.18,1.80835338]
[1736182520672,13.73581805,221.19,221.18,1.80835338]
[1736182522724,37.51270205,221.19,221.18,1.80835338]
[1736182523789,23.776884,221.18,221.16,1.80835338]
[1736182523999,37.26172205,221.18,221.16,6.30835338]
[1736182524202,37.26172205,221.17,221.16,6.30835338]
[1736182524912,37.26172205,221.17,221.14,1.80835338]
[1736182525206,13.48483805,221.15,221.14,1.80835338]
[1736182526600,23.776884,221.14,221.12,1.80835338]
[1736182526802,37.26172205,221.13,221.12,1.80835338]
[1736182527405,24.027864,221.13,221.12,1.80835338]
[1736182528411,0.25098,221.13,221.12,1.80835338]
[1736182529305,13.48483805,221.19,221.18,4.5]
[1736182529515,39.85270205,221.19,221.18,6.30835338]
[1736182529710,20.0,221.15,221.14,6.30835338]
[1736182529891,24.027864,221.14,221.12,6.30835338]
[1736182530095,37.51270205,221.13,221.12,6.30835338]
[1736182535319,37.51270205,221.13,221.12,1.80835338]
[1736182536205,37.51270205,221.13,221.1,6.30835338]
[1736182536206,23.776884,221.12,221.1,6.30835338]
[1736182536410,39.60172205,221.11,221.1,6.30835338]
[1736182537935,39.60172205,221.11,221.1,1.80835338]
[1736182538428,39.60172205,221.11,221.1,6.30835338]
[1736182538926,2.34,221.11,221.1,6.30835338]
[1736182540113,13.48483805,221.16,221.15,1.80835338]